fUST/lending_fUST_20241026
["ID","MTS","AMOUNT","RATE_DAILY","PERIOD"]
[340835753,1729899039471,-166.666666,0.00023396,2]
[340835755,1729899039482,-217.41,0.000234,7]
[340835757,1729899039493,-175.474865,0.00023446,2]
[340835759,1729899039504,-1095.1349808,0.00023465,2]
[340835761,1729899039515,-170.154578,0.00023526,2]
[340835763,1729899039525,-153.0,0.00023611,2]
[340835765,1729899039535,-153.0,0.00023611,2]
[340835767,1729899039545,-170.154578,0.00023659,2]
[340835769,1729899039555,-170.154578,0.00023792,2]
[340835771,1729899039565,-170.154578,0.00023926,2]
[340835773,1729899039574,-1095.1349808,0.00023965,2]
[340835775,1729899039585,-166.666666,0.00024001,2]
[340835778,1729899039595,-170.154578,0.00024059,2]
[340835781,1729899039605,-170.154578,0.00024192,2]
[340835783,1729899039615,-1095.1349808,0.00024465,2]
[340835785,1729899039627,-306.0,0.0002457,2]
[340835786,1729899039637,-153.0,0.0002457,2]
[340835788,1729899039647,-153.0,0.0002457,2]
[340835789,1729899039657,-153.0,0.0002457,2]
[340835790,1729899039668,-153.0,0.0002457,2]
[340835792,1729899039677,-3454.25321032,0.000246,2]
[340835794,1729899039692,-123.63578968,0.000246,2]
[340835795,1729899039703,-158.17011383,0.000246,2]
[340835796,1729899039713,-166.666666,0.00024606,2]
[340835797,1729899039723,-153.996,0.0002461,7]
[340835798,1729899039732,-158.90604318,0.00024649,2]
[340835799,1729899039743,-5489.26,0.0002473,10]
[340835800,1729899039752,-5672.23,0.0002473,10]
[340835801,1729899039762,-4726.86,0.0002473,10]
[340835802,1729899039772,-151.0,0.0002474,7]
[340835803,1729899039782,-151.0,0.0002474,7]
[340835804,1729899039792,-7811.16219891,0.0002474,3]
[340835806,1729899039803,-75422.4289596,0.0002474,3]
[340835808,1729899039814,-170.04843903,0.00024749,2]
[340835810,1729899039824,-500.0,0.00024749,2]
[340835812,1729899039834,-193.99656911,0.00024749,2]
[340835814,1729899039844,-500.0,0.00024749,2]
[340835816,1729899039854,-404.94341906,0.00024749,2]
[340835818,1729899039865,-67223.47008815,0.0002475,2]
[340835820,1729899039878,-500.0,0.0002475,2]
[340835822,1729899039888,-686.024,0.0002475,2]
[340835824,1729899039898,-151.0,0.0002475,7]
[340835826,1729899039914,-500.0,0.0002475,9]
[340835828,1729899039923,-151.0,0.0002475,7]
[340835831,1729899039934,-151.0,0.0002475,7]
[340835833,1729899039944,-300.866178,0.0002475,7]
[340835835,1729899039955,-151.0,0.0002475,7]
[340835837,1729899039965,-151.0,0.00024809,7]
[340835839,1729899039975,-151.0,0.00024809,7]
[340835841,1729899039985,-151.0,0.00024809,7]
[340835842,1729899039997,-151.0,0.00024809,7]
[340835843,1729899040007,-151.0,0.00024819,7]
[340835844,1729899040017,-151.0,0.00024819,7]
[340835845,1729899040030,-151.0,0.00024819,7]
[340835846,1729899040042,-151.0,0.00024819,7]
[340835847,1729899040052,-22009.86014211,0.00024839,2]
[340835848,1729899040062,-151.0,0.00024839,7]
[340835849,1729899040074,-151.0,0.00024839,7]
[340835850,1729899040083,-151.0,0.00024839,7]
[340835851,1729899040094,-151.0,0.00024839,7]
[340835852,1729899040104,-151.0,0.00024839,7]
[340835853,1729899040116,-151.0,0.00024839,7]
[340835854,1729899040130,-151.0,0.00024839,7]
[340835855,1729899040144,-151.0,0.00024839,7]
[340835856,1729899040154,-7811.16219891,0.00024849,3]
[340835857,1729899040164,-75422.4289596,0.00024849,3]
[340835858,1729899040174,-151.224985,0.00024861,7]
[340835859,1729899040184,-151.0,0.00024861,7]
[340835860,1729899040195,-151.0,0.00024861,7]
[340835861,1729899040208,-151.0,0.00024861,7]
[340835862,1729899040219,-151.0,0.0002487,7]
[340835863,1729899040229,-151.0,0.0002487,7]
[340835864,1729899040239,-228.17112,0.0002487,7]
[340835865,1729899040249,-151.0,0.0002487,7]
[340835866,1729899040259,-151.0,0.0002487,7]
[340835867,1729899040269,-151.0,0.0002487,7]
[340835868,1729899040279,-273.74825,0.0002487,7]
[340835869,1729899040290,-151.0,0.0002487,7]
[340835870,1729899040300,-1000.0,0.00024879,2]
[340835871,1729899040310,-570.0,0.00024932,2]
[340835872,1729899040321,-151.0,0.00024959,7]
[340835873,1729899040330,-151.0,0.00024959,7]
[340835874,1729899040340,-1000.0,0.00024959,7]
[340835875,1729899040350,-750.08171426,0.00024959,7]
[340835876,1729899040361,-1095.1349808,0.00024965,2]
[340835877,1729899040371,-151.0,0.00024968,7]
[340835878,1729899040386,-151.0,0.00024968,7]
[340835879,1729899040395,-151.0,0.00024968,7]
[340835880,1729899040406,-151.0,0.00024968,7]
[340835881,1729899040417,-151.0,0.0002497,7]
[340835882,1729899040427,-500.0,0.00024978,2]
[340835883,1729899040436,-390.47761262,0.00024978,2]
[340835884,1729899040446,-500.0,0.00024978,2]
[340835885,1729899040455,-407.65646257,0.00024978,2]
[340835886,1729899040465,-500.0,0.00024978,2]
[340835887,1729899040475,-500.0,0.00024978,2]
[340835888,1729899040485,-500.0,0.00024978,2]
[340835889,1729899040494,-584.17284392,0.00024978,2]
[340835890,1729899040504,-556.6220074,0.00024978,2]
[340835891,1729899040514,-7811.16219891,0.0002498,3]
[340835892,1729899040524,-75422.4289596,0.0002498,3]
[340835893,1729899040534,-151.0,0.00024989,7]
[340835894,1729899040547,-151.0,0.00024989,7]
[340835895,1729899040557,-151.0,0.0002499,7]
[340835896,1729899040568,-151.0,0.0002499,7]
[340835897,1729899040578,-151.0,0.0002499,7]
[340835898,1729899040587,-101545.108586,0.0002499,3]
[340835899,1729899040597,-150844.857919,0.0002499,3]
[340835900,1729899040607,-256.502368,0.0002499,7]
[340835901,1729899040617,-422805.41338633,0.00025,2]
[340835902,1729899040633,-7482.29666972,0.00025,2]
[340835903,1729899040643,-164.95655665,0.00025,2]
[340835904,1729899040653,-56756.21726207,0.00025,2]
[340835905,1729899040663,-202.76832214,0.00025,2]
[340835906,1729899040672,-10364.0,0.00025,2]
[340835907,1729899040682,-508.25128857,0.00025,2]
[340835908,1729899040692,-345.55628939,0.00025,2]
[340835909,1729899040702,-825.07847637,0.00025,2]
[340835910,1729899040712,-1288.8,0.00025,14]
[340835911,1729899040722,-1216.75,0.00025,14]
[340835912,1729899040732,-625.61,0.00025,14]
[340835913,1729899040742,-2404.34,0.00025,14]
[340835914,1729899040751,-1346.76027784,0.00025,2]
[340835915,1729899040760,-986.14705469,0.00025,2]
[340835916,1729899040770,-570.0,0.00025,2]
[340835917,1729899040780,-151.0,0.00025,7]
[340835918,1729899040790,-151.0,0.00025,7]
[340835919,1729899040799,-151.0,0.00025,7]
[340835920,1729899040809,-38735.23489387,0.00025,2]
[340835921,1729899041056,-26622.60587563,0.00025,2]
[340835922,1729899041068,-119999.9999948,0.00025,2]
[340836015,1729899044105,-153.0,0.00023611,2]
[340836016,1729899044115,-7062.0,0.00025,2]
[340836017,1729899044131,-320.24799998,0.00025,2]
[340836018,1729899044143,-19969.7056491,0.00025,2]
[340836019,1729899044152,-364.4188199,0.00025014,2]
[340836021,1729899044163,-29203.48809225,0.0002508,3]
[340836024,1729899044175,-2041.16070335,0.0002508,3]
[340836026,1729899044184,-358.83929665,0.0002509,2]
[340836269,1729899046614,-427.0,0.00024932,2]
[340836270,1729899046624,-427.0,0.00025,2]
[340836271,1729899046638,-3939.05,0.0002508,10]
[340836272,1729899046648,-54652.08509741,0.0002509,2]
[340836273,1729899046659,-32000.0,0.0002509,2]
[340836274,1729899046676,-1981.17,0.0002509,2]
[340836275,1729899046688,-9639.99999984,0.0002509,2]
[340836324,1729900232125,-291.6,0.00013973,2]
[340836326,1729900232136,-166.76923,0.00013973,2]
[340836328,1729900232146,-291.6,0.00020447,2]
[340836330,1729900232156,-5000.0,0.00023,2]
[340836332,1729900232167,-166.666666,0.00023033,2]
[340836334,1729900232177,-152.18,0.000236,7]
[340836335,1729900232188,-166.666666,0.0002366,2]
[340836337,1729900232198,-500.0,0.0002375,2]
[340836340,1729900232208,-166.76923,0.00024224,2]
[340836342,1729900232219,-595.134981,0.0002425,2]
[340836344,1729900232228,-166.666666,0.00024288,2]
[340836346,1729900232238,-153.0,0.0002457,2]
[340836348,1729900232249,-153.0,0.0002457,2]
[340836350,1729900232258,-153.0,0.0002457,2]
[340836352,1729900232268,-153.0,0.0002457,2]
[340836354,1729900232278,-300.0,0.00024749,2]
[340836356,1729900232288,-500.0,0.0002475,9]
[340836358,1729900232297,-166.666666,0.00024916,2]
[340836360,1729900232307,-320.0,0.00024932,2]
[340836362,1729900232317,-1109.56366113,0.00024989,2]
[340836364,1729900232326,-320.0,0.00025,2]
[340836365,1729900232337,-3282.54,0.0002507,10]
[340836366,1729900232346,-153.996,0.0002508,9]
[340836367,1729900232359,-158.17011383,0.0002508,2]
[340836368,1729900232369,-2033.26012004,0.0002508,3]
[340836369,1729900232381,-332.00352359,0.0002508,3]
[340836576,1729900246004,-2409.59999998,0.0002507,10]
[340836584,1729900246068,-325.85000002,0.0002507,10]
[340836586,1729900246078,-176256.45690009,0.0002508,3]
[340836633,1729901432079,-308.276923,0.00013973,2]
[340836634,1729901432090,-166.76923,0.00013973,2]
[340836635,1729901432099,-308.276923,0.00020447,2]
[340836636,1729901432109,-167.092769,0.00020555,2]
[340836637,1729901432118,-171.036758,0.00020555,2]
[340836638,1729901432127,-178.360919,0.00020555,2]
[340836639,1729901432137,-178.360919,0.00021583,2]
[340836640,1729901432147,-166.666666,0.00022639,2]
[340836641,1729901432157,-157.633374,0.00023069,2]
[340836642,1729901432166,-166.666666,0.00023256,2]
[340836643,1729901432176,-748.645581,0.00023481,2]
[340836644,1729901432185,-250.0,0.00023481,2]
[340836645,1729901432210,-250.0,0.00023545,2]
[340836646,1729901432220,-250.0,0.00023609,2]
[340836647,1729901432229,-250.0,0.00023674,2]
[340836648,1729901432289,-250.0,0.00023738,2]
[340836649,1729901432299,-500.0,0.0002375,2]
[340836650,1729901432309,-250.0,0.00023803,2]
[340836651,1729901432319,-250.0,0.00023867,2]
[340836652,1729901432328,-166.666666,0.00023874,2]
[340836653,1729901432337,-250.0,0.00023932,2]
[340836654,1729901432347,-250.0,0.00023996,2]
[340836655,1729901432356,-339.83,0.00024,7]
[340836656,1729901432366,-250.0,0.0002406,2]
[340836657,1729901432377,-250.0,0.00024125,2]
[340836658,1729901432386,-250.0,0.00024189,2]
[340836659,1729901432395,-300.0,0.00024249,2]
[340836660,1729901432415,-300.0,0.00024249,2]
[340836661,1729901432424,-595.134981,0.0002425,2]
[340836662,1729901432433,-250.0,0.00024254,2]
[340836663,1729901432443,-250.0,0.00024318,2]
[340836664,1729901432452,-250.0,0.00024382,2]
[340836665,1729901432462,-250.0,0.00024447,2]
[340836666,1729901432471,-166.666666,0.00024491,2]
[340836667,1729901432481,-250.0,0.00024511,2]
[340836668,1729901432491,-250.0,0.00024576,2]
[340836669,1729901432501,-250.0,0.0002464,2]
[340836670,1729901432511,-660.0,0.00024658,2]
[340836671,1729901432520,-250.0,0.00024704,2]
[340836672,1729901432530,-153.996,0.00024889,8]
[340836673,1729901432540,-4872.0,0.000249,7]
[340836674,1729901432550,-383.0,0.00024932,2]
[340836675,1729901432559,-970.86820348,0.00024951,2]
[340836676,1729901432569,-158.90604318,0.00024979,2]
[340836677,1729901432578,-165.0,0.00025,2]
[340836678,1729901432587,-383.0,0.00025,2]
[340836679,1729901432597,-5000.0,0.00025,2]
[340836680,1729901432606,-170.0,0.00025,2]
[340836681,1729901432616,-163.9,0.0002505,3]
[340836682,1729901432626,-491.72,0.0002505,3]
[340836683,1729901432635,-158.17011383,0.00025051,2]
[340836684,1729901432645,-7987.1746055,0.0002506,3]
[340836685,1729901432656,-18196.60499301,0.0002506,3]
[340836707,1729901880602,243.0,0.00022,60]
[340836715,1729902548347,-500.0,0.00027397,120]
[340836716,1729902548372,-151.0,0.00027397,120]
[340836717,1729902548397,-500.0,0.00027397,120]
[340836718,1729902554244,500.0,0.00027397,120]
[340836723,1729902563717,500.0,0.00027397,120]
[340836724,1729902572683,151.0,0.00027397,120]
[340836725,1729902574161,111.5,0.00027397,120]
[340836833,1729902638451,-3237.34821654,0.00013873,2]
[340836835,1729902638461,-316.615385,0.00013973,2]
[340836838,1729902638475,-166.76923,0.00013973,2]
[340836840,1729902638484,-300.0,0.00019828,2]
[340836842,1729902638494,-528.0,0.00019829,2]
[340836844,1729902638504,-1151.0,0.00019829,2]
[340836846,1729902638514,-2396.0,0.00019829,2]
[340836848,1729902638523,-316.615385,0.00020447,2]
[340836850,1729902638533,-1404.2986807,0.00020455,2]
[340836852,1729902638543,-5629.157884,0.00021,2]
[340836854,1729902638552,-166.666666,0.00022168,2]
[340836856,1729902638562,-166.666666,0.00022772,2]
[340836858,1729902638571,-160.048732,0.00022808,2]
[340836860,1729902638581,-160.048732,0.00022871,2]
[340836862,1729902638591,-160.048732,0.00022933,2]
[340836864,1729902638602,-160.048732,0.00022996,2]
[340836866,1729902638613,-309.65403444,0.00023,2]
[340836868,1729902638623,-160.048732,0.00023059,2]
[340836871,1729902638634,-500.0,0.00023083,2]
[340836873,1729902638643,-306.36430232,0.00023083,2]
[340837304,1729902643135,-193.63569768,0.00023083,2]
[340837305,1729902643145,-500.0,0.00023083,2]
[340837306,1729902643155,-512.38367285,0.00023083,2]
[340837307,1729902643167,-160.048732,0.00023121,2]
[340837308,1729902643176,-160.048732,0.00023184,2]
[340837309,1729902643187,-160.048732,0.00023246,2]
[340837310,1729902643199,-160.048732,0.00023309,2]
[340837311,1729902643209,-160.048732,0.00023371,2]
[340837312,1729902643220,-166.666666,0.00023377,2]
[340837329,1729902643230,-160.609017,0.00023388,2]
[340837331,1729902643479,-160.048732,0.00023434,2]
[340837333,1729902643490,-160.048732,0.00023496,2]
[340837335,1729902643500,-160.048732,0.00023559,2]
[340837337,1729902643511,-160.048732,0.00023621,2]
[340837338,1729902643521,-160.048732,0.00023684,2]
[340837340,1729902643531,-160.048732,0.00023747,2]
[340837342,1729902643540,-1430.9672,0.0002375,2]
[340837344,1729902643550,-160.048732,0.00023809,2]
[340837345,1729902643560,-160.048732,0.00023872,2]
[340837346,1729902643571,-160.048732,0.00023934,2]
[340837347,1729902643580,-166.666666,0.00023981,2]
[340837348,1729902643590,-160.048732,0.00023997,2]
[340837349,1729902643600,-151.437334,0.00024,2]
[340837350,1729902643609,-237.88,0.000241,7]
[340837351,1729902643619,-748.37276647,0.00024249,3]
[340837473,1729903838655,-352.4206022,0.00013773,2]
[340837475,1729903838668,-400.0,0.00013973,2]
[340837478,1729903838678,-400.0,0.00020447,2]
[340837480,1729903838688,-166.666666,0.00022552,2]
[340837482,1729903838699,-157.633374,0.00022733,2]
[340837484,1729903838710,-78.29191748,0.00022937,2]
[340837683,1729903840715,-5209.52422438,0.00022937,2]
[340837923,1729905032500,-400.0,0.00013973,2]
[340837925,1729905032512,-86.54876236,0.00020447,2]
[340838110,1729905040800,-313.45123764,0.00020447,2]
[340838112,1729905040810,-418.08909036,0.00021874,2]
[340838118,1729905040862,-670.12,0.00021874,2]
[340838138,1729905043775,-1855.12953297,0.00021874,2]
[340838146,1729905722871,2000.0,0.00014,30]
[340838159,1729906207797,153.44836871,9.9e-05,2]
[340838180,1729906235511,-400.0,0.00013973,2]
[340838181,1729906235521,-267.10517953,0.00018852,2]
[340838182,1729906235532,-700.38954361,0.00018852,2]
[340838331,1729907056984,17165.58,0.00011,2]
[340838661,1729907440281,-400.0,0.00013973,2]
[340838663,1729907440291,-430.454598,0.00017453,2]
[340838666,1729907440303,-163.798853,0.00018117,2]
[340838668,1729907440312,-202.51815193,0.00018138,2]
[340838670,1729907440325,-227.93644607,0.00018138,2]
[340838672,1729907440337,-163.798853,0.00018211,2]
[340838674,1729907440349,-163.798853,0.00018305,2]
[340838676,1729907440360,-163.798853,0.000184,2]
[340838678,1729907440369,-163.798853,0.00018494,2]
[340838680,1729907440379,-1280.23153355,0.00018519,2]
[340838683,1729907440389,-300.0,0.00018542,2]
[340838685,1729907440400,-300.0,0.00018542,2]
[340838687,1729907440411,-151.0,0.00018543,2]
[340838689,1729907440421,-151.0,0.00018543,2]
[340838691,1729907440431,-151.0,0.00018543,2]
[340838693,1729907440441,-151.0,0.00018543,2]
[340838695,1729907440452,-151.0,0.00018543,2]
[340838697,1729907440462,-151.0,0.00018543,2]
[340838699,1729907440472,-151.0,0.00018543,2]
[340838701,1729907440481,-151.0,0.00018543,2]
[340838703,1729907440491,-211.35151974,0.00018543,2]
[340838705,1729907440501,-24900.0,0.00018543,2]
[340838707,1729907440511,-163.798853,0.00018589,2]
[340838709,1729907440521,-7435.68757331,0.00018606,2]
[340838711,1729907440530,-166.668143,0.00018619,2]
[340838713,1729907440539,-160.541765,0.00018619,2]
[340838715,1729907440549,-151.0,0.0001868,2]
[340838717,1729907440560,-163.798853,0.00018683,2]
[340838719,1729907440570,-163.798853,0.00018777,2]
[340838721,1729907440580,-151.0,0.00018778,2]
[340838723,1729907440589,-151.0,0.00018778,2]
[340838725,1729907440599,-151.0,0.00018778,2]
[340838727,1729907440609,-151.0,0.0001878,2]
[340838729,1729907440618,-430.454598,0.00018822,2]
[340838731,1729907440629,-232.50527686,0.00018852,2]
[340838734,1729907440641,-151.0,0.00018852,2]
[340838735,1729907440650,-501.53644577,0.00018852,2]
[340838737,1729907440662,-151.0,0.00018852,2]
[340838739,1729907440671,-151.0,0.00018852,2]
[340838741,1729907440680,-151.0,0.00018852,2]
[340838743,1729907440690,-151.0,0.00018852,2]
[340838745,1729907440700,-151.0,0.00018852,2]
[340838748,1729907440710,-151.0,0.00018852,2]
[340838750,1729907440719,-151.0,0.00018852,2]
[340838752,1729907440728,-151.0,0.00018852,2]
[340838753,1729907440738,-151.0,0.00018852,2]
[340838756,1729907440748,-163.798853,0.00018872,2]
[340838757,1729907440757,-151.0,0.00018872,2]
[340838759,1729907440767,-151.0,0.00018872,2]
[340838762,1729907440776,-286.065221,0.00018872,2]
[340838764,1729907440786,-163.798853,0.00018966,2]
[340838766,1729907440796,-163.798853,0.00019061,2]
[340838768,1729907440805,-151.0,0.00019178,2]
[340838770,1729907440815,-151.0,0.00019178,2]
[340838772,1729907440824,-151.0,0.00019178,2]
[340838774,1729907440833,-157.633374,0.00019178,2]
[340838776,1729907440843,-151.0,0.00019276,2]
[340838778,1729907440853,-151.0,0.00019276,2]
[340838780,1729907440862,-151.0,0.00019465,2]
[340838782,1729907440871,-151.0,0.00019465,2]
[340838784,1729907440881,-151.0,0.00019465,2]
[340838786,1729907440890,-151.0,0.00019465,2]
[340838788,1729907440899,-151.0,0.00019465,2]
[340838790,1729907440911,-176.392543,0.00019465,2]
[340838792,1729907440921,-151.0,0.00019465,2]
[340838794,1729907440930,-151.0,0.00019465,2]
[340838796,1729907440939,-151.0,0.00019465,2]
[340838798,1729907440948,-266.109903,0.00019465,2]
[340838800,1729907440958,-151.0,0.00019477,2]
[340838802,1729907440968,-151.0,0.00019477,2]
[340838804,1729907440977,-151.0,0.00019477,2]
[340838806,1729907440987,-160.74122284,0.00019526,5]
[340838808,1729907440996,-151.0,0.00019577,2]
[340838810,1729907441005,-151.0,0.00019647,2]
[340838812,1729907441014,-151.0,0.00019647,2]
[340838814,1729907441024,-151.0,0.00019647,2]
[340838816,1729907441035,-151.0,0.0001965,2]
[340838818,1729907441044,-151.0,0.0001965,2]
[340838820,1729907441054,-151.0,0.0001965,2]
[340838822,1729907441065,-155.169522,0.0001965,2]
[340838824,1729907441075,-151.0,0.0001965,2]
[340838826,1729907441084,-151.0,0.0001965,2]
[340838828,1729907441093,-167.23367178,0.0001965,2]
[340838830,1729907441102,-1000.0,0.0001965,2]
[340838832,1729907441111,-750.08171426,0.0001965,2]
[340838835,1729907441121,-158.350368,0.0001965,2]
[340838837,1729907441131,-420.0,0.0002022,2]
[340838839,1729907441140,-306.0,0.00020282,2]
[340838841,1729907441149,-153.0,0.00020282,2]
[340838843,1729907441161,-409.0,0.00020396,2]
[340838844,1729907441174,-153.0,0.00020423,2]
[340838847,1729907441183,-153.0,0.00020423,2]
[340838849,1729907441193,-400.0,0.00020447,2]
[340838851,1729907441202,-153.0,0.00020523,2]
[340838852,1729907441211,-153.0,0.00020523,2]
[340838855,1729907441221,-234.6293416,0.00020523,2]
[340838857,1729907441231,-155.1268854,0.00020582,2]
[340838859,1729907441241,-153.8685139,0.00020856,2]
[340838861,1729907441251,-153.0,0.00020982,2]
[340838863,1729907441260,-153.0,0.00020982,2]
[340838865,1729907441273,-153.0,0.00020982,2]
[340838867,1729907441283,-153.0,0.00021082,2]
[340838869,1729907441292,-153.0,0.00021082,2]
[340838871,1729907441303,-153.0,0.00021082,2]
[340838873,1729907441312,-153.0,0.00021151,2]
[340838875,1729907441322,-302.6239726,0.00021151,2]
[340838877,1729907441332,-153.0,0.00021151,2]
[340838879,1729907441344,-153.0,0.00021151,2]
[340838881,1729907441353,-153.0,0.00021151,2]
[340838883,1729907441365,-304.396229,0.00021151,2]
[340838885,1729907441374,-153.0,0.00021256,2]
[340838887,1729907441384,-153.0,0.00021256,2]
[340838889,1729907441393,-153.0,0.00021282,2]
[340838891,1729907441403,-153.0,0.00021382,2]
[340838893,1729907441415,-153.0,0.00021382,2]
[340838896,1729907441427,-153.0,0.00021382,2]
[340838898,1729907441436,-153.0,0.00021382,2]
[340838900,1729907441447,-153.0,0.00021556,2]
[340838902,1729907441458,-153.0,0.00021656,2]
[340838904,1729907441468,-1000.0,0.000218,2]
[340838906,1729907441479,-637.88817459,0.00021917,2]
[340838908,1729907441489,-166.666666,0.00021918,2]
[340838911,1729907441500,-302.5509068,0.00021973,2]
[340838913,1729907441511,-302.5509068,0.00021973,2]
[340838915,1729907441520,-453.709376,0.00021973,2]
[340838917,1729907441530,-302.5509068,0.00021973,2]
[340838919,1729907441540,-302.5509068,0.00021973,2]
[340838921,1729907441551,-307.2726494,0.00022048,2]
[340838923,1729907441561,-587.0,0.0002205,2]
[340838925,1729907441571,-1280.2315335,0.00022288,2]
[340838927,1729907441581,-166.666666,0.00022431,2]
[340838929,1729907441591,-150.359,0.00022558,2]
[340838931,1729907441600,-530.726,0.00022558,2]
[340838933,1729907441611,-150.062,0.00022558,2]
[340838936,1729907441620,-150.316,0.00022558,2]
[340838938,1729907441629,-1000.0,0.000228,3]
[340838940,1729907441639,-170.40567799,0.00022836,2]
[340838942,1729907441648,-168.11,0.00022916,3]
[340838944,1729907441658,-504.34,0.00022916,3]
[340838946,1729907441669,-4751.19488606,0.00022926,3]
[340840114,1729907502450,169.34018934,0.00011,2]
[340840115,1729907648430,350.05,0.00022,60]
[340840308,1729908640470,-400.0,0.00013973,2]
[340840309,1729908640480,-400.0,0.00020447,2]
[340840311,1729908640490,-300.0,0.00020877,2]
[340840312,1729908640499,-3900.022972,0.00020878,2]
[340840313,1729908640511,-3470.08778084,0.00020878,2]
[340840329,1729908961938,400.012,0.0002179,60]
[340840408,1729909838816,-3353.50215022,0.00013873,2]
[340840409,1729909838826,-400.0,0.00013973,2]
[340840410,1729909838836,-2562.8665339,0.0001651,2]
[340840411,1729909838845,-162.5,0.00017026,2]
[340840412,1729909838854,-162.5,0.00017073,2]
[340840413,1729909838863,-162.5,0.0001712,2]
[340840414,1729909838873,-162.5,0.00017167,2]
[340840415,1729909838882,-162.5,0.00017213,2]
[340840416,1729909838891,-226.7510086,0.00017245,2]
[340840417,1729909838901,-162.5,0.0001726,2]
[340840418,1729909838910,-162.5,0.00017307,2]
[340840419,1729909838920,-162.5,0.00017353,2]
[340840420,1729909838930,-162.5,0.000174,2]
[340840421,1729909838940,-162.5,0.00017447,2]
[340840422,1729909838950,-162.5,0.00017493,2]
[340840423,1729909838960,-162.5,0.0001754,2]
[340840424,1729909838970,-162.5,0.00017587,2]
[340840425,1729909838979,-300.0,0.00017606,2]
[340840426,1729909838989,-300.0,0.00017606,2]
[340840427,1729909838998,-4380.3578934,0.00017607,2]
[340840428,1729909839008,-162.5,0.00017633,2]
[340840429,1729909839017,-162.5,0.0001768,2]
[340840430,1729909839027,-162.5,0.00017727,2]
[340840431,1729909839037,-162.5,0.00017773,2]
[340840432,1729909839046,-162.5,0.0001782,2]
[340840433,1729909839056,-162.5,0.00017867,2]
[340840434,1729909839066,-162.5,0.00017913,2]
[340840435,1729909839087,-406.33132431,0.00018373,2]
[340840436,1729909839100,-19614.42852346,0.00018374,2]
[340840532,1729911039333,-400.0,0.00013973,2]
[340840533,1729911039343,-225.1343337,0.00017735,2]
[340840534,1729911039355,-300.0,0.00017751,2]
[340840535,1729911039367,-7968.57994717,0.00017752,2]
[340840536,1729911039381,-336.851228,0.00017752,2]
[340840568,1729911117976,4394.33680723,0.00014,30]
[340840569,1729911118006,1135.21319277,0.00014,30]
[340840570,1729911130114,5529.0,0.00014,30]
[340840663,1729912246916,-200.0,0.00013973,2]
[340840664,1729912246926,-70.2525765,0.00013973,2]
[340840665,1729912246938,-309.7474235,0.00013973,2]
[340840666,1729912246947,-73.77277654,0.0001741,2]
[340840667,1729912246959,-302.0,0.0001741,2]
[340840745,1729913438340,-400.0,0.00013973,2]
[340840747,1729913438351,-8897.14948252,0.00017,2]
[340840749,1729913438362,-300.0,0.00017496,2]
[340840752,1729913438373,-300.0,0.00017496,2]
[340840754,1729913438383,-1010.34496188,0.000175,2]
[340840756,1729913438393,-189.0,0.00017778,2]
[340840758,1729913438402,-181.09268265,0.00018373,2]
[340840759,1729913438412,-1779.6569088,0.00018528,2]
[340840761,1729913438421,-322.652065,0.00018529,2]
[340840763,1729913438431,-182.408693,0.00018588,2]